bitfinex/quotes_SOLUSD_20220207
["timestamp","ask_amount","ask_price","bid_price","bid_amount"]
[1644243247295,5.41117805,118.63,118.52,23.302]
[1644243247495,1.19517805,118.63,118.53,6.0401136]
[1644243247695,1.19517805,118.63,118.54,51.57457998]
[1644243247696,38.19892551,118.63,118.54,51.57457998]
[1644243247898,50.85372551,118.63,118.56,51.82376396]
[1644243248099,13.84997805,118.63,118.56,51.82376396]
[1644243249096,12.6548,118.63,118.56,51.82376396]
[1644243249997,13.84997805,118.63,118.56,51.82376396]
[1644243250200,12.6548,118.63,118.56,51.82376396]
[1644243252201,1.19517805,118.64,118.56,63.51890009]
[1644243252400,13.84857805,118.65,118.57,12.17]
[1644243252802,13.84857805,118.65,118.57,24.8232]
[1644243252999,13.84857805,118.65,118.58,48.22672165]
[1644243253199,13.84857805,118.65,118.58,60.39672165]
[1644243254100,13.84857805,118.65,118.58,73.04962165]
[1644243254302,13.84717805,118.66,118.59,1.82913613]
[1644243254501,1.19517805,118.67,118.6,12.17]
[1644243254700,1.19517805,118.68,118.61,4.214]
[1644243254900,1.19517805,118.69,118.61,18.21313613]
[1644243255102,1.19517805,118.69,118.62,37.9937057]
[1644243255500,1.19517805,118.69,118.62,38.2437057]
[1644243255902,58.7126317,118.7,118.62,50.8921057]
[1644243256200,58.7126317,118.7,118.62,75.5579057]
[1644243256401,58.7126317,118.7,118.62,75.3079057]
[1644243256801,58.7126317,118.7,118.63,1.82913613]
[1644243257004,13.84307805,118.7,118.64,43.08478192]
[1644243257600,12.6479,118.7,118.64,43.08478192]
[1644243258001,59.6122972,118.7,118.64,43.08478192]
[1644243258400,12.6479,118.7,118.64,43.08478192]
[1644243259005,12.6479,118.7,118.62,37.3143]
[1644243259202,16.8609,118.7,118.62,37.3143]
[1644243260301,57.62038633,118.7,118.63,40.03089897]
[1644243260501,53.40738633,118.7,118.63,40.03089897]
[1644243262704,53.40738633,118.7,118.62,37.3143]
[1644243262903,53.40738633,118.7,118.62,49.4843]
[1644243263104,53.40738633,118.7,118.62,36.8358]
[1644243263307,53.40738633,118.7,118.62,24.6658]
[1644243263505,56.74939295,118.7,118.62,24.6658]
[1644243263705,12.6536,118.67,118.62,24.6658]
[1644243263904,4.214,118.66,118.61,24.7127]
[1644243264205,43.38267805,118.66,118.58,23.3298]
[1644243264508,4.215,118.65,118.53,16.385]
[1644243264706,16.8693,118.65,118.53,12.17]
[1644243264908,42.9063149,118.64,118.54,40.85324589]
[1644243265104,4.216,118.63,118.54,40.85324589]
[1644243265304,72.23627678,118.62,118.54,40.85324589]
[1644243266706,72.23627678,118.62,118.52,49.3108]
[1644243266906,12.6599,118.61,118.52,49.3108]
[1644243267708,34.86830228,118.6,118.53,45.01555804]
[1644243267907,39.08430228,118.6,118.53,45.01555804]
[1644243268208,12.6607,118.58,118.52,49.3108]
[1644243269207,12.6607,118.58,118.52,85.22589812]
[1644243270107,47.90586712,118.58,118.52,85.22589812]
[1644243270307,47.40586712,118.58,118.52,85.22589812]
[1644243271511,47.40586712,118.58,118.52,49.3108]
[1644243271911,47.40586712,118.58,118.5,78.0617]
[1644243272612,47.40586712,118.58,118.51,36.26600862]
[1644243273013,47.40586712,118.58,118.5,78.0617]
[1644243274115,47.40586712,118.58,118.5,125.67413695]
[1644243274318,47.40586712,118.58,118.5,121.45713695]
[1644243274519,47.40586712,118.58,118.5,97.31243695]
[1644243275215,12.1607,118.58,118.5,97.31243695]
[1644243275415,12.1607,118.58,118.5,109.48243695]
[1644243275615,12.6594,118.6,118.5,113.94943695]
[1644243275816,12.6594,118.6,118.51,23.7449]
[1644243276037,12.6594,118.6,118.52,12.17]
[1644243276239,12.6594,118.6,118.53,45.55365367]
[1644243276842,16.8764,118.6,118.53,45.55365367]
[1644243277242,28.46497378,118.59,118.53,45.55365367]
[1644243277543,12.6618,118.58,118.51,23.7449]
[1644243278541,12.6618,118.58,118.52,34.23254195]
[1644243279844,12.6618,118.58,118.5,49.7]
[1644243280048,12.6643,118.55,118.5,49.7]
[1644243281545,35.58596324,118.54,118.5,49.7]
[1644243281744,12.6651,118.53,118.5,49.7]
[1644243283146,1.19517805,118.6,118.51,51.49946957]
[1644243283147,12.6635,118.54,118.51,51.49946957]
[1644243283347,42.2085,118.58,118.51,51.49946957]
[1644243284355,12.6623,118.56,118.51,51.49946957]
[1644243284550,46.4203,118.6,118.51,51.49946957]
[1644243284751,42.2023,118.6,118.52,22.9267]
[1644243285552,77.36306597,118.6,118.53,34.38547477]
[1644243285752,12.6602,118.58,118.53,34.38547477]
[1644243293460,13.85537805,118.58,118.53,34.38547477]
[1644243294560,12.6602,118.58,118.53,34.38547477]
[1644243294760,13.85537805,118.58,118.53,34.38547477]
[1644243294960,51.24217835,118.58,118.53,34.38547477]
[1644243295162,1.19517805,118.57,118.53,34.38547477]
[1644243295464,12.6635,118.56,118.53,34.38547477]
[1644243295660,12.6635,118.56,118.5,49.7]
[1644243295861,1.19517805,118.55,118.5,49.7]
[1644243296461,1.19517805,118.54,118.5,49.7]
[1644243297161,13.86107805,118.54,118.5,49.7]
[1644243297361,18.07907805,118.54,118.5,49.7]
[1644243298064,13.86107805,118.54,118.5,49.7]
[1644243298663,12.6659,118.54,118.5,49.7]
[1644243298862,37.3868003,118.53,118.5,49.7]
[1644243299061,12.6678,118.52,118.5,49.7]
[1644243302366,12.6678,118.52,118.5,94.5779708]
[1644243302562,12.6644,118.53,118.5,94.5779708]
[1644243303766,12.6644,118.53,118.5,49.7]
[1644243303961,12.6644,118.53,118.51,6.06439994]
[1644243304764,12.6644,118.53,118.5,49.7]
[1644243306364,47.77407718,118.53,118.5,49.7]
[1644243308368,47.77407718,118.53,118.47,0.2]
[1644243308571,12.6723,118.51,118.43,0.2]
[1644243308772,4.22,118.5,118.42,0.4477808]
[1644243309267,9.32079342,118.49,118.42,0.4477808]
[1644243309667,12.6746,118.48,118.42,0.4477808]
[1644243309866,35.10967718,118.47,118.42,0.4477808]
[1644243312071,12.675,118.46,118.42,0.4477808]
[1644243312975,12.679,118.44,118.4,2.41362706]
[1644243313172,45.0,118.42,118.4,0.99266264]
[1644243313377,45.0,118.42,118.39,0.59459447]
[1644243313583,4.222,118.43,118.39,0.59459447]
[1644243313777,4.222,118.44,118.39,0.59459447]
[1644243313973,33.7715168,118.43,118.39,0.59459447]
[1644243314473,12.6815,118.41,118.39,0.59459447]
[1644243315975,21.3325,118.41,118.39,0.59459447]
[1644243316177,8.651,118.41,118.39,0.59459447]
[1644243316376,8.651,118.41,118.39,3.62679444]
[1644243316578,8.651,118.41,118.39,6.65899441]
[1644243316975,8.651,118.41,118.39,0.59459447]
[1644243317176,11.04,118.44,118.39,0.59459447]
[1644243317398,15.262,118.44,118.39,0.59459447]
[1644243317598,106.0,118.42,118.37,0.2412678]
[1644243317803,106.0,118.42,118.39,0.35952416]
[1644243318004,12.208798,118.41,118.37,0.2412678]
[1644243318200,8.5100549,118.41,118.37,0.2412678]
[1644243319000,21.1920549,118.41,118.37,0.2412678]
[1644243320501,25.4150549,118.41,118.37,0.2412678]
[1644243320701,20.049409,118.4,118.37,0.2412678]
[1644243320900,32.733309,118.4,118.37,0.2412678]
[1644243321101,14.609023,118.39,118.37,0.2412678]
[1644243321501,19.621072,118.4,118.37,0.2412678]
[1644243321704,35.67413445,118.39,118.37,0.2412678]
[1644243322002,35.67413445,118.39,118.36,0.76211796]
[1644243322204,28.150371,118.38,118.36,0.76211796]
[1644243322706,12.469047,118.38,118.36,0.76211796]
[1644243322903,21.22538315,118.37,118.36,0.76211796]
[1644243323304,12.469047,118.37,118.36,0.76211796]
[1644243323505,12.469047,118.4,118.36,0.76211796]
[1644243323706,12.469047,118.39,118.36,0.76211796]
[1644243323909,48.323069,118.43,118.36,0.76211796]
[1644243324105,23.716297,118.42,118.36,0.76211796]
[1644243324305,35.65048282,118.41,118.36,0.76211796]
[1644243325405,4.223,118.42,118.36,0.76211796]
[1644243325609,12.464813,118.41,118.36,0.76211796]
[1644243325808,16.393,118.44,118.36,0.76211796]
[1644243326012,6.20166,118.43,118.36,0.76211796]
[1644243326411,6.20166,118.43,118.37,36.68712375]
[1644243326708,38.07147877,118.45,118.37,36.68712375]
[1644243326911,44.27313877,118.45,118.37,36.68712375]
[1644243327513,44.27313877,118.45,118.36,0.76211796]
[1644243327711,4.222,118.44,118.36,0.76211796]
[1644243328514,19.04029183,118.43,118.36,0.76211796]
[1644243329515,19.04029183,118.43,118.37,45.45009979]
[1644243329710,12.6813,118.43,118.37,45.45009979]
[1644243329913,12.204671,118.42,118.36,0.76211796]
[1644243330111,12.6813,118.43,118.36,0.76211796]
[1644243330715,16.9021,118.45,118.36,0.76211796]
[1644243330912,33.83551206,118.44,118.37,44.39394314]
[1644243331416,33.83551206,118.44,118.36,0.76211796]
[1644243331614,4.222,118.43,118.36,0.76211796]
[1644243332216,16.573,118.43,118.36,0.76211796]
[1644243332515,53.49719554,118.42,118.36,0.76211796]
[1644243332715,34.955237,118.41,118.36,0.76211796]
[1644243332915,41.962198,118.4,118.36,0.76211796]
[1644243333118,16.42235,118.39,118.36,0.76211796]
[1644243333316,4.223,118.39,118.36,0.76211796]
[1644243333717,17.424031,118.38,118.36,0.76211796]
[1644243333921,50.32520668,118.38,118.36,0.76211796]
[1644243334119,32.90117568,118.38,118.36,0.26211796]
[1644243334419,12.201412,118.37,118.36,0.26211796]
[1644243335019,32.90117568,118.38,118.36,0.26211796]
[1644243335417,16.394,118.43,118.36,0.26211796]
[1644243335617,21.482535,118.42,118.36,0.26211796]
[1644243335818,42.2745,118.43,118.36,0.26211796]
[1644243336017,12.191132,118.42,118.36,0.26211796]
[1644243336420,34.55237101,118.42,118.36,0.26211796]
[1644243336918,42.2588,118.45,118.36,0.26211796]
[1644243337118,6.20166,118.45,118.36,0.26211796]
[1644243337320,6.20166,118.45,118.37,12.17]
[1644243337722,1.19517805,118.47,118.37,12.17]
[1644243337921,36.17655485,118.46,118.38,40.6051425]
[1644243338122,1.19517805,118.47,118.38,40.6051425]
[1644243338321,1.19517805,118.47,118.39,12.17]
[1644243338525,1.19517805,118.48,118.39,12.17]
[1644243338721,1.19517805,118.49,118.39,14.26513826]
[1644243339124,1.19517805,118.49,118.39,12.42]
[1644243339330,1.19517805,118.5,118.4,82.69015338]
[1644243339529,12.6711,118.49,118.41,12.17]
[1644243339724,1.19517805,118.51,118.42,4.221]
[1644243339925,1.19517805,118.51,118.43,34.8659]
[1644243340324,1.19517805,118.52,118.43,39.0859]
[1644243340525,1.19517805,118.51,118.44,44.04236381]
[1644243340826,1.19517805,118.52,118.44,44.04236381]
[1644243341027,1.19517805,118.52,118.44,44.29236381]
[1644243341225,1.19517805,118.52,118.44,50.35750207]
[1644243341430,1.19517805,118.52,118.44,48.51236381]
[1644243341627,1.19517805,118.51,118.45,12.17]
[1644243342128,1.19517805,118.51,118.45,59.6381]
[1644243342332,13.86357805,118.51,118.45,59.6381]
[1644243342532,1.19517805,118.5,118.45,47.4681]
[1644243342728,13.39247605,118.5,118.45,47.4681]
[1644243342928,1.19517805,118.5,118.45,47.4681]
[1644243343933,12.6714,118.49,118.45,47.4681]
[1644243344327,12.6714,118.49,118.45,89.47161112]
[1644243344529,1.19517805,118.51,118.45,89.47161112]
[1644243344729,1.19517805,118.52,118.45,89.47161112]
[1644243345135,6.01465006,118.69,118.46,162.389]
[1644243345331,37.42337406,118.65,118.54,285.0]
[1644243345532,2.39500384,118.64,118.55,48.3462578]
[1644243345732,538.81379623,118.68,118.55,107.8518578]
[1644243345733,2.39500384,118.67,118.55,107.8518578]
[1644243346334,2.39500384,118.67,118.54,285.0]
[1644243346335,12.6561,118.63,118.54,285.0]
[1644243346536,47.656409,118.62,118.51,285.0]
[1644243346733,12.17,118.66,118.51,285.0]
[1644243346734,2.14682857,118.66,118.51,285.0]
[1644243346933,2.38939736,118.65,118.52,59.3237]
[1644243347134,2.14682857,118.69,118.52,59.3237]
[1644243347436,51.02693532,118.68,118.53,36.16003023]
[1644243347737,50.78495978,118.68,118.54,12.17]
[1644243347934,12.6592,118.63,118.55,41.30305529]
[1644243348133,12.6592,118.63,118.56,12.17]
[1644243348334,12.6592,118.63,118.57,47.54626092]
[1644243348533,12.6592,118.63,118.57,59.71626092]
[1644243349136,2.14682857,118.68,118.57,59.71626092]
[1644243349137,12.6539,118.65,118.57,59.71626092]
[1644243350335,12.6539,118.65,118.57,72.61886092]
[1644243351135,12.6516,118.67,118.58,4.215]
[1644243351337,12.6516,118.67,118.59,12.17]
[1644243351639,42.1661,118.71,118.59,24.8202]
[1644243351835,42.1661,118.71,118.59,29.0342]
[1644243352036,78.34503987,118.71,118.6,38.67901546]
[1644243352235,12.6492,118.69,118.61,12.17]
[1644243352637,12.6492,118.69,118.61,24.8182]
[1644243353236,12.6492,118.69,118.62,44.79392328]
[1644243353437,12.6492,118.69,118.63,12.17]
[1644243353638,12.6492,118.69,118.64,37.05764342]
[1644243354240,12.6472,118.71,118.64,49.22764342]
[1644243354638,31.10454944,118.7,118.64,12.17]
[1644243355141,31.10454944,118.7,118.61,36.4608]
[1644243355739,12.6496,118.69,118.61,36.4608]
[1644243355939,42.1624,118.72,118.61,49.1092]
[1644243356144,42.1624,118.72,118.61,53.3222]
[1644243356538,4.208,118.77,118.61,53.3222]
[1644243356741,40.73328082,118.75,118.62,66.62759526]
[1644243356941,12.6448,118.73,118.64,12.645]
[1644243357141,16.34198978,118.73,118.65,60.76880969]
[1644243357341,16.34198978,118.73,118.66,12.17]
[1644243357541,12.6448,118.73,118.67,42.55006276]
[1644243357743,12.6448,118.73,118.67,54.72006276]
[1644243363068,12.6448,118.73,118.67,12.17]
[1644243365169,12.6463,118.71,118.67,12.17]
[1644243371480,12.6451,118.72,118.67,12.17]
[1644243371880,12.6451,118.72,118.67,53.25292147]
[1644243373884,12.6439,118.74,118.67,53.25292147]
[1644243375786,46.9798979,118.74,118.67,53.25292147]
[1644243375985,12.6439,118.74,118.67,53.25292147]
[1644243379295,12.6439,118.74,118.67,65.89522147]
[1644243382092,2.40031757,118.73,118.67,65.89522147]
[1644243382591,15.04481757,118.73,118.67,53.25292147]
[1644243382792,2.40031757,118.72,118.67,53.25292147]
[1644243383191,2.40031757,118.74,118.67,53.25292147]
[1644243385020,12.645,118.72,118.67,53.25292147]
[1644243388219,2.40269799,118.71,118.67,41.08292147]
[1644243388420,12.6478,118.7,118.67,41.08292147]
[1644243388819,12.6478,118.7,118.68,6.06439994]
[1644243390221,12.6478,118.7,118.69,36.28449929]
[1644243391821,12.6456,118.71,118.69,36.28449929]
[1644243392221,12.6456,118.71,118.7,3.03219997]
[1644243392424,12.6456,118.71,118.69,39.31669926]
[1644243393526,12.6456,118.71,118.7,3.03219997]
[1644243393926,12.6456,118.71,118.69,39.31669926]
[1644243394225,12.6456,118.71,118.69,36.28449929]
[1644243395528,42.1499,118.75,118.69,36.28449929]
[1644243395828,2.40225627,118.74,118.69,36.28449929]
[1644243396026,2.40225627,118.76,118.69,36.28449929]
[1644243396226,2.40225627,118.76,118.7,12.17]
[1644243396426,2.40225627,118.76,118.71,41.51269343]
[1644243396826,12.6445,118.74,118.71,41.51269343]
[1644243397026,12.6445,118.74,118.72,6.06439994]
[1644243397325,42.1436,118.77,118.73,42.65837769]
[1644243397535,2.40209309,118.76,118.73,42.65837769]
[1644243397730,15.04279309,118.76,118.73,42.65837769]
[1644243398027,2.40209309,118.76,118.73,54.82837769]
[1644243398235,21.47866361,118.82,118.74,6.06439994]
[1644243398428,2.40149093,118.81,118.75,43.18361359]
[1644243398627,2.40149093,118.81,118.75,55.35361359]
[1644243399929,12.6373,118.8,118.75,55.35361359]
[1644243400131,2.40149093,118.79,118.75,55.35361359]
[1644243400932,2.40149093,118.81,118.75,55.35361359]
[1644243401932,12.638,118.79,118.75,55.35361359]
[1644243402135,2.40149093,118.78,118.75,12.17]
[1644243403035,35.47350474,118.77,118.73,12.17]
[1644243403234,35.47350474,118.77,118.7,16.378]
[1644243403536,2.39869028,118.76,118.71,48.1330486]
[1644243404035,2.39869028,118.76,118.7,16.378]
[1644243404935,12.6422,118.75,118.7,59.97775133]
[1644243406336,12.6422,118.75,118.7,16.378]
[1644243406935,12.6422,118.75,118.7,12.17]
[1644243408540,21.59916586,118.75,118.7,12.17]
[1644243408740,21.59916586,118.75,118.68,35.0802]
[1644243408939,21.59916586,118.75,118.65,39.2012]
[1644243409139,10.37253108,118.74,118.65,34.9902]
[1644243409443,12.6458,118.72,118.65,34.9902]
[1644243409643,12.6458,118.72,118.66,41.05634458]
[1644243409844,12.6458,118.72,118.65,57.6396]
[1644243410745,12.6458,118.72,118.65,100.80737424]
[1644243411144,8.95696586,118.71,118.65,57.6396]
[1644243411343,12.6481,118.7,118.65,57.6396]
[1644243412144,31.41766463,118.69,118.65,57.6396]
[1644243412344,12.6481,118.7,118.65,57.6396]
[1644243412544,12.6481,118.7,118.65,45.4696]
[1644243413147,12.6481,118.7,118.64,12.17]
[1644243413347,12.6504,118.68,118.64,12.17]
[1644243414546,12.6504,118.68,118.6,16.8637]
[1644243414547,12.6504,118.68,118.62,12.17]
[1644243414846,12.6504,118.68,118.61,36.2095]
[1644243415245,12.6504,118.68,118.62,35.35803989]
[1644243417549,12.6504,118.68,118.61,12.17]
[1644243417750,12.6504,118.68,118.6,12.17]
[1644243418750,12.6504,118.68,118.61,47.28751331]
[1644243420751,12.6504,118.68,118.61,71.16371331]
[1644243421153,12.6504,118.68,118.61,23.8762]
[1644243422054,34.35655663,118.67,118.61,23.8762]
[1644243422454,12.6537,118.66,118.61,23.8762]
[1644243423053,10.07391397,118.65,118.61,23.8762]
[1644243423459,12.6549,118.64,118.58,12.17]
[1644243423661,14.80172857,118.64,118.57,4.214]
[1644243423854,19.00172857,118.64,118.57,4.214]
[1644243424058,2.14682857,118.63,118.57,4.214]
[1644243424256,34.35655663,118.62,118.57,4.214]
[1644243424461,47.01655663,118.62,118.57,4.214]
[1644243424660,49.1633852,118.62,118.57,4.214]
[1644243425255,49.1633852,118.62,118.54,48.8548]
[1644243426086,49.1633852,118.62,118.54,94.83666138]
[1644243426281,49.1633852,118.62,118.54,48.8548]
[1644243426981,12.661,118.59,118.54,48.8548]
[1644243427184,12.661,118.59,118.54,85.15842124]
[1644243427882,12.661,118.59,118.54,48.8548]
[1644243428483,12.661,118.59,118.52,12.17]
[1644243428885,12.661,118.59,118.53,40.42247548]
[1644243430888,12.661,118.59,118.54,12.17]
[1644243431089,12.657,118.6,118.54,16.387]
[1644243431393,15.75204,118.64,118.55,41.41175965]
[1644243431394,2.14682857,118.64,118.55,41.41175965]
[1644243431589,12.3444,118.67,118.56,16.386]
[1644243431789,4.203,118.69,118.56,16.636]
[1644243431994,42.1725,118.68,118.56,24.49198842]
[1644243432189,12.6515,118.66,118.57,1.85598842]
[1644243432389,12.6515,118.66,118.59,45.19899212]
[1644243432591,12.6515,118.66,118.6,12.17]
[1644243432792,12.6515,118.66,118.61,40.55358658]
[1644243432989,12.6515,118.66,118.61,52.72358658]
[1644243438998,12.6497,118.67,118.61,65.37328658]
[1644243439196,44.55510085,118.7,118.61,77.01428658]
[1644243439399,2.38960085,118.71,118.61,77.01428658]
[1644243439602,112.5,118.76,118.61,77.01428658]
[1644243439603,2.38960085,118.72,118.61,77.01428658]
[1644243439902,2.38960085,118.73,118.61,77.01428658]
[1644243440097,12.6462,118.7,118.61,77.01428658]
[1644243440298,2.38960085,118.73,118.62,4.213]
[1644243440497,2.38960085,118.72,118.65,12.6452]
[1644243440697,2.38960085,118.73,118.66,12.17]
[1644243441098,44.54110085,118.74,118.66,12.17]
[1644243441300,2.38960085,118.74,118.66,24.273]
[1644243441502,4.78499065,118.75,118.67,36.61015484]
[1644243441698,4.78499065,118.75,118.68,12.17]
[1644243441899,44.53510085,118.76,118.69,38.10563023]
[1644243442300,12.6431,118.74,118.69,48.93263023]
[1644243442500,7.80187124,118.78,118.7,12.17]
[1644243442501,2.38960085,118.77,118.7,12.17]
[1644243442700,2.38960085,118.77,118.7,12.42]
[1644243442899,2.38960085,118.78,118.7,20.27537369]
[1644243443100,2.38960085,118.79,118.7,71.18497369]
[1644243443400,2.38960085,118.79,118.72,12.6376]
[1644243443599,4.78264342,118.81,118.73,12.17]
[1644243443799,0.1,118.82,118.73,12.17]
[1644243444103,2.38960085,118.83,118.73,18.17]
[1644243444299,4.77646032,118.83,118.74,47.50479063]
[1644243444600,4.87646032,118.83,118.76,40.25102493]
[1644243444805,4.87646032,118.83,118.77,12.17]
[1644243445003,12.6347,118.82,118.77,12.17]
[1644243445202,12.7347,118.82,118.77,12.17]
[1644243446001,14.67218276,118.82,118.77,12.17]
[1644243446205,2.14682857,118.81,118.74,47.1971]
[1644243446403,12.6401,118.78,118.68,4.208]
[1644243446604,12.6401,118.78,118.71,35.5579]
[1644243446801,14.78692857,118.78,118.71,35.5579]
[1644243447001,14.78692857,118.78,118.72,47.81378858]
[1644243449005,12.6401,118.78,118.72,47.81378858]
[1644243451809,12.6401,118.78,118.7,12.17]
[1644243452007,14.78692857,118.78,118.7,12.17]
[1644243452207,14.78692857,118.78,118.68,58.7198]
[1644243452208,14.78692857,118.78,118.68,46.078]
[1644243452406,18.99292857,118.78,118.68,58.248]
[1644243452808,32.89790879,118.77,118.69,47.52666158]
[1644243453007,12.6429,118.75,118.69,47.52666158]
[1644243458929,12.6402,118.77,118.7,12.17]
[1644243459129,12.6402,118.77,118.7,20.226]
[1644243459939,12.6402,118.77,118.7,32.8656]
[1644243460139,12.6402,118.77,118.7,38.8656]
[1644243462142,12.6402,118.77,118.7,18.17]
[1644243462541,12.6402,118.77,118.7,12.17]
[1644243465242,1.19569601,118.75,118.7,12.17]
[1644243465443,13.83689601,118.75,118.7,12.17]
[1644243466043,1.19569601,118.74,118.69,47.52666158]
[1644243466243,1.19569601,118.74,118.68,58.248]
[1644243466846,1.19569601,118.73,118.68,58.248]
[1644243467045,13.83919601,118.73,118.68,58.248]
[1644243467249,13.83919601,118.73,118.68,95.25885314]
[1644243468347,13.83919601,118.73,118.72,1.0]
[1644243468746,12.6435,118.73,118.72,1.0]
[1644243470349,46.90318028,118.73,118.67,12.17]
[1644243470550,46.90318028,118.73,118.65,12.17]
[1644243470551,1.19995575,118.71,118.65,12.17]
[1644243470750,1.19995575,118.69,118.64,24.5384]
[1644243471453,1.19995575,118.68,118.64,61.63751884]
[1644243472052,13.84935575,118.68,118.64,61.63751884]
[1644243472358,42.1625,118.71,118.64,61.63751884]
[1644243472359,1.19995575,118.69,118.64,61.63751884]
[1644243474153,13.84755575,118.69,118.64,61.63751884]
[1644243477059,1.19995575,118.69,118.64,74.28361884]
[1644243477258,1.19995575,118.7,118.65,16.383]
[1644243477461,1.19995575,118.71,118.65,16.383]
[1644243479161,1.19995575,118.71,118.66,12.6436]
[1644243479563,1.19995575,118.71,118.66,24.8136]
[1644243480470,13.84555575,118.71,118.65,12.6453]
[1644243480663,1.19995575,118.7,118.65,12.6453]
[1644243480862,1.19995575,118.7,118.64,73.80751884]
[1644243481263,2.2094946,118.72,118.64,61.63751884]
[1644243481264,1.19995575,118.69,118.64,61.63751884]
[1644243481663,13.84805575,118.69,118.64,61.63751884]
[1644243487172,1.19995575,118.68,118.64,61.63751884]
[1644243488275,13.84805575,118.69,118.64,61.63751884]
[1644243489674,13.84805575,118.69,118.64,24.5384]
[1644243490578,1.19995575,118.68,118.64,69.51630351]
[1644243491379,1.19995575,118.68,118.64,24.5384]
[1644243491976,13.84845575,118.68,118.64,24.5384]
[1644243492176,13.84845575,118.68,118.63,23.3714]
[1644243492376,49.63881052,118.68,118.6,43.24981134]
[1644243492575,49.63881052,118.68,118.59,4.213]
[1644243492576,1.19995575,118.67,118.59,16.383]
[1644243493378,1.19995575,118.67,118.59,40.8249]
[1644243493598,1.19995575,118.67,118.59,76.25790493]
[1644243493996,12.6521,118.65,118.59,72.04490493]
[1644243494196,12.6521,118.65,118.59,24.4419]
[1644243494497,13.85205575,118.65,118.59,24.4419]
[1644243500201,13.85205575,118.65,118.59,36.6119]
[1644243501502,1.19995575,118.64,118.59,36.6119]
[1644243501704,13.85355575,118.64,118.59,36.6119]
[1644243502003,22.49367158,118.64,118.59,36.6119]
[1644243502402,13.85355575,118.64,118.59,36.6119]
[1644243503402,13.85355575,118.64,118.59,80.27760722]
[1644243504005,13.85355575,118.64,118.59,36.6119]
[1644243504404,13.85355575,118.64,118.59,24.4419]
[1644243505005,13.85355575,118.64,118.57,12.17]
[1644243505205,13.85355575,118.64,118.55,73.89895644]
[1644243505406,13.85355575,118.64,118.56,24.8687]
[1644243506008,16.00038432,118.64,118.56,24.8687]
[1644243506209,1.19995575,118.63,118.56,24.8687]
[1644243506407,12.73199718,118.62,118.56,24.8687]
[1644243506708,12.6583,118.61,118.56,24.8687]
[1644243506908,12.6583,118.61,118.55,61.72895644]
[1644243507110,2.14682857,118.6,118.53,4.215]
[1644243507308,2.14682857,118.6,118.53,16.385]
[1644243507508,12.6602,118.58,118.53,16.385]
[1644243508112,12.6602,118.58,118.53,46.77074341]
[1644243529532,4.205,118.62,118.53,46.77074341]
[1644243529533,5.40495575,118.62,118.53,46.77074341]
[1644243529735,1.19995575,118.63,118.53,46.77074341]
[1644243529934,1.19995575,118.63,118.54,23.3749]
[1644243530126,1.19995575,118.63,118.55,12.17]
[1644243530527,1.19995575,118.64,118.55,12.17]
[1644243530927,12.657,118.61,118.55,24.8258]
[1644243531929,21.76566284,118.61,118.55,12.17]
[1644243532330,22.96561859,118.61,118.55,12.17]
[1644243532731,25.11244716,118.61,118.55,12.17]
[1644243533331,29.31844716,118.61,118.55,12.17]
[1644243533733,28.11849141,118.61,118.55,12.17]
[1644243533930,29.31844716,118.61,118.55,12.17]
[1644243534531,25.11244716,118.61,118.55,12.17]
[1644243534732,37.88244716,118.61,118.52,24.5941]
[1644243534950,37.88244716,118.61,118.5,24.8749]
[1644243535153,12.6645,118.57,118.5,24.8749]
[1644243535553,47.98630776,118.57,118.5,66.69319189]
[1644243535863,12.6645,118.57,118.5,66.69319189]
[1644243536655,16.01128432,118.57,118.5,66.69319189]
[1644243536854,12.6645,118.57,118.5,66.69319189]
[1644243537252,13.86445575,118.57,118.5,66.69319189]
[1644243537451,16.01128432,118.57,118.5,41.81829189]
[1644243538052,14.81132857,118.57,118.5,41.81829189]
[1644243540054,12.6645,118.57,118.5,41.81829189]
[1644243541459,12.6645,118.57,118.5,54.47979189]
[1644243542058,12.6645,118.57,118.5,66.64979189]
[1644243549465,12.6645,118.57,118.5,65.64979189]
[1644243550265,12.6592,118.58,118.5,65.64979189]